[Event "World Junior U20 Open 2018"]
[Site "Gebze"]
[Date "2018.09.07"]
[Round "4.48"]
[White "Silva, David"]
[Black "Philippe, Guillaume"]
[Result "0-1"]
[ECO "A47"]
[WhiteElo "2223"]
[BlackElo "2358"]
[Annotator "ChessBase"]
[PlyCount "96"]
[EventDate "2018.09.05"]
[EventType "swiss"]
[EventCountry "TUR"]
[SourceTitle "playchess.com"]
[Source "ChessBase"]
[SourceQuality "1"]
[TimeControl "40/5400+30:1800+30"]

1. d4 Nf6 2. Nf3 e6 3. e3 b6 4. Bd3 Bb7 5. Nbd2 c5 6. c3 Nc6 7. O-O cxd4 8. exd4 Bd6 9. Qe2 Ne7 10. Ne4 Bc7 11. Ne5 {[%emt 0:44:30]} Nxe4 {[%emt 0:21:30]} 12. Bxe4 {[%emt 0:00:30]} Bxe4 {[%emt 0:00:30]} 13. Qxe4 {[%emt 0:00:30]} O-O {[%emt 0:00:30]} 14. Nd3 {[%emt 0:00:30]} Ng6 {[%emt 0:01:30]} 15. f4 {[%emt 0:12:30]} f5 {[%emt 0:01:30]} 16. Qe2 {[%emt 0:01:30]} Ne7 {[%emt 0:00:30]} 17. c4 {[%emt 0:02:30]} Kh8 {[%emt 0:04:30]} 18. b4 {[%emt 0:01:30]} Ng8 {[%emt 0:01:30]} 19. Bb2 {[%emt 0:03:30]} Nf6 {[%emt 0:00:30]} 20. Rac1 {[%emt 0:02:30]} Ne4 {[%emt 0:01:30]} 21. d5 {[%emt 0:04:30]} Qe7 {[%emt 0:04:30]} 22. Rf3 {[%emt 0:05:30]} Rae8 {[%emt 0:03:30]} 23. Rh3 {[%emt 0:05:12]} Qf7 {[%emt 0:00:30]} 24. dxe6 {[%emt 0:05:08]} Rxe6 {[%emt 0:00:30]} 25. Re3 {[%emt 0:02:46]} Rfe8 {[%emt 0:00:30]} 26. Qc2 {[%emt 0:04:57]} Rc6 {[%emt 0:06:30]} 27. Be5 {[%emt 0:01:02]} Rc8 {[%emt 0:02:30]} 28. c5 {[%emt 0:03:12]} bxc5 {[%emt 0:00:30]} 29. bxc5 {[%emt 0:00:56]} d6 {[%emt 0:00:30]} 30. Qa4 {[%emt 0:00:54]} Bb8 {[%emt 0:00:30]} 31. Bd4 {[%emt 0:00:48]} dxc5 {[%emt 0:00:30]} 32. Be5 {[%emt 0:00:24]} Qd7 {[%emt 0:09:30]} 33. Qc4 {[%emt 0:00:40]} Bd6 {[%emt 0:09:30]} 34. Bxd6 {[%emt 0:00:29]} Rxd6 {[%emt 0:01:30]} 35. Rce1 {[%emt 0:00:37]} Rd4 {[%emt 0:00:00]} 36. Qc2 {[%emt 0:00:18]} Qd5 {[%emt 0:01:00]} 37. Ne5 {[%emt 0:00:36]} c4 {[%emt 0:01:30]} 38. Rh3 {[%emt 0:00:24]} Kg8 {[%emt 0:00:30]} 39. Qe2 {[%emt 0:00:32]} c3 {[%emt 0:04:30]} 40. Qh5 {[%emt 0:00:38]} Nf6 {[%emt 0:00:00]} 41. Qxf5 {[%emt 0:00:57]} Rc7 {[%emt 0:02:00]} 42. Rd3 {[%emt 0:05:30]} c2 {[%emt 0:13:30]} 43. Rc1 {[%emt 0:01:30]} Ne4 {[%emt 0:07:30]} 44. Qh3 {[%emt 0:02:30]} Rxd3 {[%emt 0:00:30]} 45. Nxd3 {[%emt 0:01:30]} Rc3 {[%emt 0:00:30]} 46. Kf1 {[%emt 0:01:43]} Rxd3 {[%emt 0:00:30]} 47. Qc8+ {[%emt 0:00:17]} Kf7 {[%emt 0:00:30]} 48. Qc7+ {[%emt 0:00:30]} Kg6 {[%emt 0:00:30]} 0-1

[Event "World Junior U20 Open 2018"]
[Site "Gebze"]
[Date "2018.09.07"]
[Round "4.49"]
[White "Schitco, Ivan"]
[Black "Akin, Kadir"]
[Result "1-0"]
[ECO "E05"]
[WhiteElo "2358"]
[BlackElo "1974"]
[Annotator "NA"]
[PlyCount "105"]
[EventDate "2018.09.05"]
[EventType "swiss"]
[EventCountry "TUR"]
[SourceTitle "playchess.com"]
[Source "ChessBase"]
[SourceQuality "1"]
[TimeControl "40/5400+30:1800+30"]

1. d4 Nf6 2. c4 e6 3. g3 d5 4. Bg2 Be7 5. Nf3 O-O 6. O-O dxc4 7. Ne5 c5 8. dxc5 Bxc5 9. Nxc4 Nc6 {E05: Katalanisch} 10. Nc3 a6 11. Bf4 Ra7 $146 ({Vorgänger:} 11... Qe7 12. Bd6 Bxd6 13. Qxd6 Qxd6 14. Nxd6 Rb8 15. Na4 b5 {½-½ (62) Gajewski,G (2540)-Durarbayli,V (2368) Dresden 2007}) 12. Na4 Qe7 13. Nxc5 Qxc5 14. Bd6 Qxc4 15. Bxf8 Kxf8 16. Rc1 Qb5 17. Bxc6 bxc6 18. Qd8+ Ne8 19. Qxc8 Rc7 20. Qd8 Qxb2 21. Qd3 Qb5 22. Qxh7 Qxe2 23. Rc2 Qf3 24. Qh8+ Ke7 25. Qh4+ f6 26. Rfc1 {[%emt 0:27:00]} Rd7 {[%emt 0:41:00]} 27. Qb4+ {[%emt 0:00:30]} Kf7 {[%emt 0:00:30]} 28. Qc4 {[%emt 0:00:30]} Rd6 {[%emt 0:03:30]} 29. Rc3 {[%emt 0:03:30]} Qf5 {[%emt 0:01:30]} 30. Qxa6 {[%emt 0:04:30]} Rd2 {[%emt 0:00:00]} 31. Qa7+ {[%emt 0:00:00]} Kg6 {[%emt 0:00:00]} 32. a4 {[%emt 0:04:00]} Nd6 {[%emt 0:00:30]} 33. Qc5 {[%emt 0:01:30]} e5 {[%emt 0:00:30]} 34. Qe3 {[%emt 0:05:30]} Ra2 {[%emt 0:02:30]} 35. Ra3 {[%emt 0:06:30]} Rb2 {[%emt 0:00:30]} 36. Qd3 $18 {[%emt 0:05:30]} ({Resist} 36. Rxc6 Ne4 $18) 36... e4 {[%emt 0:02:30]} 37. Qd4 {[%emt 0:05:30]} Re2 {[%emt 0:00:30]} 38. Rf1 {[%emt 0:01:30]} Nf7 {[%emt 0:00:30]} 39. Qc4 {[%emt 0:02:30]} Rd2 {[%emt 0:00:30]} 40. Qb4 {[%emt 0:00:00]} Rc2 {[%emt 0:00:00]} 41. Qb3 {[%emt 0:10:00]} Rd2 {[%emt 0:03:00]} 42. g4 {[%emt 0:01:30]} Qxg4+ {[%emt 0:02:30]} 43. Qg3 {[%emt 0:00:30]} Kh5 {[%emt 0:01:30]} 44. Qxg4+ {[%emt 0:00:30]} Kxg4 {[%emt 0:00:00]} 45. f3+ {[%emt 0:01:30]} exf3 {[%emt 0:00:00]} 46. Rfxf3 {[%emt 0:00:00]} Ng5 {[%emt 0:00:30]} 47. h3+ {[%emt 0:01:00]} Kh5 {[%emt 0:00:00]} 48. Rfd3 {[%emt 0:00:30]} Rb2 {[%emt 0:00:00]} 49. a5 {[%emt 0:00:30]} Ne4 {[%emt 0:00:30]} 50. a6 {[%emt 0:00:30]} Rb1+ {[%emt 0:00:30]} 51. Kg2 {[%emt 0:00:30]} Rb2+ {[%emt 0:00:00]} 52. Kf3 {[%emt 0:00:30]} Nd2+ {[%emt 0:01:00]} 53. Rxd2 {[%emt 0:00:30]} 1-0

[Event "World Junior U20 Open 2018"]
[Site "Gebze"]
[Date "2018.09.07"]
[Round "4.50"]
[White "Arcuti, Davide"]
[Black "Gulden, Egemen"]
[Result "1-0"]
[ECO "E71"]
[WhiteElo "2356"]
[BlackElo "2068"]
[Annotator "NA"]
[PlyCount "115"]
[EventDate "2018.09.05"]
[EventType "swiss"]
[EventCountry "TUR"]
[SourceTitle "playchess.com"]
[Source "ChessBase"]
[SourceQuality "1"]
[TimeControl "40/5400+30:1800+30"]

1. d4 {[%emt 0:00:30]} Nf6 {[%emt 0:00:30]} 2. c4 {[%emt 0:00:30]} g6 {[%emt 0:00:30]} 3. Nc3 {[%emt 0:00:30]} Bg7 {[%emt 0:00:00]} 4. e4 {[%emt 0:00:00]} d6 {[%emt 0:00:00]} 5. h3 {[%emt 0:00:00]} O-O {[%emt 0:00:30]} 6. Be3 {[%emt 0:00:30]} c5 {[%emt 0:00:30]} 7. d5 {[%emt 0:00:00] E71: King's Indian: 4 e4 d6 5 h3} (7. Nf3 cxd4 8. Nxd4 a6 9. Be2 b6 10. Bf3 Bb7 11. e5 Bxf3 12. Nxf3 dxe5 13. Qxd8 Rxd8 14. Bxb6 Rc8 15. Nd2 Nfd7 16. Be3 {1-0 (64) Jones,G (2666)-Perez Candelario,M (2611) Linares 2018}) 7... e6 {[%emt 0:02:30]} 8. Bd3 {[%emt 0:00:30]} exd5 {[%emt 0:00:30]} 9. exd5 {[%emt 0:00:30]} Nfd7 {[%emt 0:00:30]} 10. Nf3 {[%emt 0:03:00]} Na6 {[%emt 0:02:30]} 11. O-O {[%emt 0:07:30]} Nc7 {[%emt 0:01:30]} 12. Qd2 {[%emt 0:04:30]} f5 $146 {[%emt 0:03:30]} ({Predecessor:} 12... a6 13. Bh6 Rb8 14. Rae1 b5 15. b3 f6 16. Ne4 Ne8 17. Bxg7 Kxg7 18. Qc3 b4 19. Qb2 {1-0 (59) Khurtsidze,N (2430)-Calotescu,A (2330) Kusadasi 2006}) 13. Rae1 {[%emt 0:11:30]} Ne5 {[%emt 0:06:30]} 14. Nxe5 {[%emt 0:03:30]} Bxe5 {[%emt 0:00:30]} 15. Bg5 {[%emt 0:07:30]} Bf6 {[%emt 0:02:00]} 16. h4 {[%emt 0:01:30]} Bxg5 {[%emt 0:23:00]} 17. Qxg5 {[%emt 0:58:30]} Qxg5 {[%emt 0:03:30]} 18. hxg5 {[%emt 0:00:30]} Bd7 {[%emt 0:00:30]} 19. f4 {[%emt 0:03:30]} Rae8 {[%emt 0:02:30]} 20. Rd1 {[%emt 0:04:30]} Re7 {[%emt 0:09:30]} 21. Kf2 {[%emt 0:01:30]} Rb8 {[%emt 0:01:30]} 22. a4 {[%emt 0:04:30]} a5 {[%emt 0:04:30]} 23. Rh1 {[%emt 0:01:30]} b6 {[%emt 0:04:30]} 24. Rh6 {[%emt 0:01:30]} Rf8 {[%emt 0:02:30]} 25. Rdh1 {[%emt 0:01:30]} Rg7 {[%emt 0:02:30]} 26. b3 {[%emt 0:01:30]} Rff7 {[%emt 0:04:30]} 27. Nd1 {[%emt 0:03:30]} Ne8 {[%emt 0:04:30]} 28. Ne3 {[%emt 0:00:30]} Bc8 {[%emt 0:02:30]} 29. g3 {[%emt 0:01:30]} Bd7 {[%emt 0:02:30]} 30. Ke2 {[%emt 0:00:30]} Bc8 {[%emt 0:00:30]} 31. Kd2 {[%emt 0:00:30]} Bd7 {[%emt 0:00:30]} 32. Ng2 {[%emt 0:00:30]} Kf8 {[%emt 0:01:30]} 33. Be2 {[%emt 0:03:32]} Bc8 {[%emt 0:05:30]} 34. Ne3 {[%emt 0:02:55]} Bd7 {[%emt 0:06:30]} 35. R1h4 {[%emt 0:00:40]} Ke7 {[%emt 0:07:18]} 36. Bd3 {[%emt 0:03:16]} Bc8 {[%emt 0:03:37]} 37. Ke2 {[%emt 0:00:56]} Bd7 {[%emt 0:02:23]} 38. Kf3 {[%emt 0:00:13]} Kd8 {[%emt 0:03:23]} 39. Rh2 {[%emt 0:00:19]} Ke7 {[%emt 0:01:15]} 40. Rh1 {[%emt 0:00:00]} Kd8 {[%emt 0:00:00]} 41. g4 {[%emt 0:11:39]} Ke7 {[%emt 0:08:34]} 42. gxf5 {[%emt 0:01:30]} gxf5 {[%emt 0:00:30]} 43. Kf2 {[%emt 0:01:30]} Kf8 {[%emt 0:03:30]} 44. Be2 {[%emt 0:01:30]} Re7 {[%emt 0:05:30]} 45. Ng2 {[%emt 0:09:30]} Kg8 {[%emt 0:03:46]} 46. Bh5 {[%emt 0:00:12]} Re4 {[%emt 0:03:33]} 47. Bxe8 {[%emt 0:01:45]} Bxe8 {[%emt 0:00:05]} 48. Rxd6 {[%emt 0:00:16]} Rge7 {[%emt 0:01:35]} 49. Re1 {[%emt 0:01:44]} Rxe1 {[%emt 0:02:02]} 50. Nxe1 {[%emt 0:00:30]} Bh5 {[%emt 0:00:30]} 51. Rxb6 {[%emt 0:00:30]} Re2+ {[%emt 0:00:30]} 52. Kf1 {[%emt 0:00:30]} Re4 {[%emt 0:00:30]} 53. Ng2 {[%emt 0:01:41]} Bd1 {[%emt 0:03:03]} 54. Rb5 {[%emt 0:05:30]} Rd4 {[%emt 0:01:04]} (54... Kf8 $142 55. Kf2 (55. Rxc5 Bxb3 56. Rxa5 Rxc4 $18) 55... Kf7 56. Rxa5 Bxb3 57. Rxc5 Bxc4) 55. Ne3 {[%emt 0:03:14]} Rxf4+ {[%emt 0:00:46]} 56. Kg2 {[%emt 0:00:26]} Bh5 {[%emt 0:00:54]} 57. Rxc5 $18 {[%emt 0:00:35]} Rf3 {[%emt 0:01:26]} 58. d6 {[%emt 0:02:55]} 1-0

[Event "World Junior U20 Open 2018"]
[Site "Gebze"]
[Date "2018.09.07"]
[Round "4.51"]
[White "Eren, Ataberk"]
[Black "Kalogeris, Ioannis"]
[Result "0-1"]
[ECO "B80"]
[WhiteElo "2180"]
[BlackElo "2352"]
[Annotator "NA"]
[PlyCount "100"]
[EventDate "2018.09.05"]
[EventType "swiss"]
[EventCountry "TUR"]
[SourceTitle "playchess.com"]
[Source "ChessBase"]
[SourceQuality "1"]
[TimeControl "40/5400+30:1800+30"]

1. e4 c5 2. Nf3 e6 3. d4 cxd4 4. Nxd4 Nc6 5. Nc3 Qc7 6. g3 a6 7. Bg2 d6 8. O-O Bd7 9. Re1 Nf6 10. Bg5 {B80: Sizilianisch (Scheveninger System)} (10. Nxc6 bxc6 11. e5 dxe5 12. Qe2 Bd6 13. b3 Nd5 14. Bb2 O-O 15. Na4 Rab8 16. c4 Nb6 17. c5 Nxa4 18. cxd6 Qb6 19. Bxe5 {½-½ (41) Safarli,E (2668)-Gelashvili,T (2563) Minsk 2017}) 10... Be7 11. Nb3 $146 ({Vorgänger:} 11. Nf5 exf5 12. Bxf6 Bxf6 13. Nd5 Qd8 14. exf5+ Kf8 15. g4 g5 16. c4 Be5 17. h4 h6 {½-½ (53) Rakesh,K (2283)-Gusain,H (2461) Warsaw 2017}) 11... h6 12. Be3 Ne5 13. a4 Nc4 14. Bc1 O-O 15. Nd4 Rab8 16. b3 {[%emt 0:38:00]} Rfc8 {[%emt 0:28:00]} 17. Qd3 {[%emt 0:00:30]} Na5 {[%emt 0:00:30]} 18. Bd2 {[%emt 0:00:30]} Ng4 {[%emt 0:00:30]} 19. f4 {[%emt 0:01:30]} Nc6 {[%emt 0:24:30]} 20. h3 {[%emt 0:28:30]} Nb4 {[%emt 0:00:30]} 21. Qf3 {[%emt 0:00:30]} Qb6 {[%emt 0:00:30]} 22. Nce2 {[%emt 0:00:30]} Nxc2 {[%emt 0:00:30]} 23. a5 {[%emt 0:03:30]} Nxd4 {[%emt 0:03:30]} 24. axb6 {[%emt 0:00:30]} Nxf3+ {[%emt 0:00:30]} 25. Bxf3 {[%emt 0:00:00]} Nf6 {[%emt 0:00:30]} 26. Bb4 {[%emt 0:01:00]} Kf8 {[%emt 0:06:30]} 27. Rad1 {[%emt 0:01:30]} Ne8 {[%emt 0:02:30]} 28. g4 {[%emt 0:12:26]} Ra8 {[%emt 0:04:30]} 29. Ba5 {[%emt 0:01:57]} Bh4 {[%emt 0:02:30]} 30. Rf1 {[%emt 0:00:01]} Bb5 {[%emt 0:00:30]} 31. e5 {[%emt 0:01:21]} d5 {[%emt 0:04:30]} 32. f5 {[%emt 0:00:08]} Kg8 {[%emt 0:04:30]} 33. fxe6 {[%emt 0:04:17]} fxe6 {[%emt 0:00:30]} 34. Nf4 {[%emt 0:00:30]} Bxf1 {[%emt 0:00:30]} 35. Rxf1 {[%emt 0:00:30]} Rc5 {[%emt 0:00:30]} 36. b4 {[%emt 0:00:00]} Rb5 {[%emt 0:13:06]} 37. Be2 {[%emt 0:05:01]} Bg3 {[%emt 0:00:57]} 38. Ng6 {[%emt 0:01:12]} Nd6 {[%emt 0:03:28]} 39. Ne7+ {[%emt 0:01:27]} Kh7 {[%emt 0:01:35]} 40. exd6 {[%emt 0:00:00]} Bxd6 {[%emt 0:00:00]} 41. Bd3+ {[%emt 0:02:10]} Kh8 {[%emt 0:02:54]} 42. Bxb5 {[%emt 0:11:30]} axb5 {[%emt 0:00:30]} 43. Rf7 {[%emt 0:00:30]} Kh7 {[%emt 0:03:30]} 44. Kf2 {[%emt 0:01:30]} Rd8 $1 {[%emt 0:10:55]} 45. Ke3 {[%emt 0:06:09]} (45. Nc6 $16 bxc6 46. b7) 45... Rd7 $1 {[%emt 0:01:09]} 46. Nf5 {[%emt 0:04:17]} Bf4+ {[%emt 0:00:27]} 47. Kxf4 {[%emt 0:01:00]} Rxf7 {[%emt 0:00:30]} 48. Ke5 {[%emt 0:00:00]} exf5 {[%emt 0:00:09]} 49. gxf5 {[%emt 0:00:00]} Rd7 {[%emt 0:00:00]} 50. Kd4 {[%emt 0:00:00]} Kg8 {[%emt 0:00:08]} 0-1

[Event "World Junior U20 Open 2018"]
[Site "Gebze"]
[Date "2018.09.07"]
[Round "4.52"]
[White "Zrikem, Nassim"]
[Black "Galperin, Platon"]
[Result "1/2-1/2"]
[ECO "A05"]
[WhiteElo "2066"]
[BlackElo "2348"]
[Annotator "NA"]
[PlyCount "101"]
[EventDate "2018.09.05"]
[EventType "swiss"]
[EventCountry "TUR"]
[SourceTitle "playchess.com"]
[Source "ChessBase"]
[SourceQuality "1"]
[TimeControl "40/5400+30:1800+30"]

1. Nf3 Nf6 2. g3 b5 3. Bg2 Bb7 4. O-O e6 5. d3 Be7 6. e4 d6 7. Nbd2 O-O {A05: Réti Opening: 1 Nf3 Nf6} 8. a4 b4 9. Re1 a5 10. e5 (10. Nc4 Nbd7 11. b3 d5 12. exd5 Nxd5 13. Bb2 Bf6 14. Nfe5 Nxe5 15. Nxe5 {½-½ (48) Santos Latasa,J (2576)-Vallejo Pons,F (2707) Leon 2018}) 10... Nfd7 $146 ({Predecessor:} 10... Nd5 11. Ne4 dxe5 12. Nxe5 c5 13. Be3 Nxe3 14. fxe3 Qc7 {0-1 (37) Vistinietzki,I (2290)-Shrentzel,M (2300) Netanya 1993}) 11. h4 dxe5 12. Nxe5 Bxg2 13. Kxg2 Nxe5 14. Rxe5 Nc6 15. Re1 Qd7 16. Nc4 Rad8 17. Be3 f5 18. f3 e5 19. Bf2 Bf6 {[%emt 0:32:30]} 20. Qd2 {[%emt 0:33:00]} Qf7 {[%emt 0:00:30]} 21. Rad1 {[%emt 0:00:30]} Qg6 {[%emt 0:00:30]} 22. Rh1 {[%emt 0:00:30]} h5 {[%emt 0:00:30]} 23. Qe2 {[%emt 0:00:30]} Rde8 {[%emt 0:00:30]} 24. c3 {[%emt 0:00:30]} bxc3 {[%emt 0:00:30]} 25. bxc3 {[%emt 0:00:30]} e4 {[%emt 0:00:30]} 26. dxe4 {[%emt 0:00:30]} fxe4 {[%emt 0:00:30]} 27. f4 {[%emt 0:02:30]} Bxc3 {[%emt 0:02:30]} 28. Ne3 {[%emt 0:01:30]} Bb4 {[%emt 0:03:30]} 29. Rd5 {[%emt 0:00:00]} Nd8 {[%emt 0:06:30]} 30. Rg5 {[%emt 0:00:00]} Qc6 {[%emt 0:00:30]} 31. Qxh5 {[%emt 0:01:30]} Ne6 {[%emt 0:02:30]} 32. Rg4 {[%emt 0:05:30]} Bd2 {[%emt 0:00:30]} 33. Rd1 $11 {[%emt 0:15:30]} ({Better is} 33. f5 $14 Qc5 34. Qg6 Bxe3 35. Bxe3 Qxe3 36. fxe6 Qf3+ 37. Kh2) 33... Bxe3 {[%emt 0:04:30]} 34. Bxe3 {[%emt 0:00:30]} Qc3 {[%emt 0:01:30]} 35. Kf2 {[%emt 0:05:30]} Rd8 {[%emt 0:02:30]} 36. Re1 {[%emt 0:00:30]} Qc2+ {[%emt 0:02:30]} 37. Re2 {[%emt 0:00:30]} Qxa4 {[%emt 0:00:30]} 38. Qg6 {[%emt 0:00:30]} Qd7 {[%emt 0:00:30]} 39. h5 {[%emt 0:01:30]} Qf7 {[%emt 0:02:30]} 40. Qxe4 {[%emt 0:00:00]} Rde8 {[%emt 0:00:00]} 41. Qg6 {[%emt 0:01:00]} a4 {[%emt 0:02:00]} 42. Qxf7+ {[%emt 0:00:00]} Kxf7 {[%emt 0:00:30]} 43. Ra2 {[%emt 0:01:00]} Ra8 {[%emt 0:00:30]} 44. Ke2 {[%emt 0:00:00]} Rfe8 {[%emt 0:01:30]} 45. f5 {[%emt 0:01:00]} Nc5 {[%emt 0:00:30]} 46. Rc4 {[%emt 0:00:00]} Ra5 {[%emt 0:00:30]} 47. Kf3 {[%emt 0:00:00]} Nd7 {[%emt 0:01:30]} 48. Rxc7 {[%emt 0:01:30]} Rxf5+ {[%emt 0:00:30]} 49. Bf4 {[%emt 0:02:30]} Re7 {[%emt 0:00:30]} 50. Rxa4 {[%emt 0:01:30]} Rxh5 {[%emt 0:00:30]} 51. Re4 {[%emt 0:01:30]} 1/2-1/2

[Event "World Junior U20 Open 2018"]
[Site "Gebze"]
[Date "2018.09.07"]
[Round "4.56"]
[White "Krishna Teja, N."]
[Black "Cirovic, Miroljub"]
[Result "1-0"]
[ECO "E32"]
[WhiteElo "2356"]
[BlackElo "2181"]
[Annotator "NA"]
[PlyCount "67"]
[EventDate "2018.09.05"]
[EventType "swiss"]
[EventCountry "TUR"]
[SourceTitle "playchess.com"]
[Source "ChessBase"]
[SourceQuality "1"]
[TimeControl "40/5400+30:1800+30"]

1. d4 Nf6 2. c4 e6 3. Nc3 Bb4 4. Qc2 O-O 5. a3 Bxc3+ 6. Qxc3 b6 7. Nf3 Bb7 8. g3 d6 9. Bg2 Nbd7 10. O-O Be4 11. b4 Qc8 12. Bb2 Qb7 13. Bh3 c6 14. Nd2 Bg6 15. Bg2 d5 16. f3 c5 17. f4 Bf5 18. e4 dxe4 19. dxc5 bxc5 20. g4 Bxg4 21. Nxe4 Qb6 22. Nxf6+ gxf6 23. Qg3 {[%emt 0:22:30]} Kh8 {[%emt 0:43:30]} 24. Qxg4 {[%emt 0:00:30]} cxb4+ {[%emt 0:00:30]} 25. Kh1 {[%emt 0:00:30]} bxa3 {[%emt 0:00:30]} 26. Bxa3 {[%emt 0:00:30]} Rg8 {[%emt 0:00:30]} 27. Qd1 {[%emt 0:00:30]} Rad8 {[%emt 0:00:30]} 28. Be7 {[%emt 0:00:30]} Qb2 {[%emt 0:04:30]} 29. Bf3 {[%emt 0:01:30]} Rb8 {[%emt 0:03:30]} 30. Qxd7 {[%emt 0:00:30]} Rg6 {[%emt 0:00:30]} 31. Rad1 {[%emt 0:04:30]} Rbg8 {[%emt 0:00:30]} 32. Qd2 {[%emt 0:00:00]} Qb3 {[%emt 0:01:30]} 33. Be4 {[%emt 0:00:00]} Rh6 {[%emt 0:00:30]} 34. Rg1 1-0

[Event "World Junior U20 Open 2018"]
[Site "Gebze"]
[Date "2018.09.07"]
[Round "4.57"]
[White "Ismayilov, Muhammad"]
[Black "Sawlin, Leonid"]
[Result "0-1"]
[ECO "B06"]
[WhiteElo "2137"]
[BlackElo "2355"]
[Annotator "NA"]
[PlyCount "68"]
[EventDate "2018.09.05"]
[EventType "swiss"]
[EventCountry "TUR"]
[SourceTitle "playchess.com"]
[Source "ChessBase"]
[SourceQuality "1"]
[TimeControl "40/5400+30:1800+30"]

1. e4 g6 2. d4 Bg7 3. Nc3 d6 4. f4 a6 5. Nf3 b5 6. Bd3 Nd7 7. O-O c5 8. dxc5 Nxc5 9. Be3 Bb7 10. Bxc5 dxc5 11. e5 f5 12. exf6 Nxf6 {[%emt 0:20:00]} 13. Qe2 {[%emt 0:53:30]} c4 {[%emt 0:05:30]} 14. Be4 {[%emt 0:00:30]} Nxe4 {[%emt 0:01:30]} 15. Nxe4 {[%emt 0:00:00]} O-O {[%emt 0:00:30]} 16. Neg5 {[%emt 0:08:00]} Bd5 {[%emt 0:06:30]} 17. Ne5 {[%emt 0:05:30]} Rf5 {[%emt 0:01:30]} 18. Qe3 {[%emt 0:03:30]} Qc7 {[%emt 0:02:30]} 19. Rad1 {[%emt 0:04:30]} Qb7 {[%emt 0:04:30]} 20. g4 {[%emt 0:05:03]} Rf6 {[%emt 0:03:30]} 21. Rd4 {[%emt 0:01:29]} Raf8 {[%emt 0:02:30]} 22. Rfd1 {[%emt 0:03:38]} e6 {[%emt 0:00:30]} 23. Nh3 {[%emt 0:03:07]} Qc7 {[%emt 0:02:30]} 24. f5 {[%emt 0:06:11]} gxf5 {[%emt 0:01:30]} 25. Nf4 {[%emt 0:01:52]} fxg4 {[%emt 0:00:30]} 26. Nh5 {[%emt 0:03:09]} Rf5 {[%emt 0:01:30]} 27. Nxg7 {[%emt 0:00:40]} Rxe5 {[%emt 0:01:30]} 28. Rxg4 {[%emt 0:00:28]} Kh8 {[%emt 0:02:30]} 29. Qg3 {[%emt 0:02:01]} Qa7+ {[%emt 0:00:30]} 30. Rdd4 {[%emt 0:00:32]} Re2 {[%emt 0:00:30]} 31. Qc3 {[%emt 0:01:17]} e5 {[%emt 0:00:30]} 32. Nf5 {[%emt 0:00:22]} Rxf5 {[%emt 0:00:30]} 33. Qg3 {[%emt 0:00:17]} Rg2+ {[%emt 0:01:30]} 34. Qxg2 {[%emt 0:00:06]} Bxg2 {[%emt 0:00:00]} 0-1

[Event "World Junior U20 Open 2018"]
[Site "Gebze"]
[Date "2018.09.07"]
[Round "4.58"]
[White "Ongut, Tamas Gunes"]
[Black "Wadsworth, Matthew J"]
[Result "0-1"]
[ECO "C10"]
[WhiteElo "2121"]
[BlackElo "2351"]
[Annotator "NA"]
[PlyCount "119"]
[EventDate "2018.09.05"]
[EventType "swiss"]
[EventCountry "TUR"]
[SourceTitle "playchess.com"]
[Source "ChessBase"]
[SourceQuality "1"]
[TimeControl "40/5400+30:1800+30"]

1. e4 {[%emt 0:00:30]} e6 {[%emt 0:03:30]} 2. d4 {[%emt 0:00:00]} d5 {[%emt 0:00:30]} 3. Nc3 {[%emt 0:01:00]} dxe4 {[%emt 0:01:30]} 4. Nxe4 {[%emt 0:00:30]} Bd7 {[%emt 0:00:30]} 5. Nf3 {[%emt 0:00:00]} Bc6 {[%emt 0:00:00]} 6. Bd3 {[%emt 0:03:00]} Nd7 {[%emt 0:00:30]} 7. O-O {[%emt 0:02:30]} Ngf6 {[%emt 0:00:00]} 8. Nxf6+ {[%emt 0:01:30]} Qxf6 {[%emt 0:00:30]} 9. c3 {[%emt 0:01:30] C10: French with 3 Nc3: Unusual Black 3rd moves and 3...dxe4} Bxf3 {[%emt 0:03:30]} 10. Qxf3 {[%emt 0:01:30]} Qxf3 {[%emt 0:00:30]} 11. gxf3 {[%emt 0:00:30]} O-O-O {[%emt 0:04:30]} (11... Bd6 12. c4 c5 13. Be4 O-O-O 14. Be3 f5 15. dxc5 Bxc5 16. Bc2 Bxe3 17. fxe3 {0-1 (39) Potapov,P (2476)-Jobava,B (2673) Minsk 2015}) 12. Bf4 {[%emt 0:02:00]} Be7 {[%emt 0:02:30]} 13. Rad1 $146 {[%emt 0:03:30]} ({Predecessor:} 13. Rae1 Bf6 14. Bc2 g5 15. Bg3 Rdg8 16. Kh1 h5 17. Rg1 h4 18. Be5 Bxe5 19. dxe5 Nf8 {½-½ (19) Schlegel,H (1764)-Friedel,R (1612) Leipzig 2016}) 13... Bf6 {[%emt 0:03:30]} 14. Rfe1 {[%emt 0:00:30]} g6 {[%emt 0:03:30]} 15. Bc4 {[%emt 0:02:30]} Nb6 {[%emt 0:04:30]} 16. Bb3 {[%emt 0:00:30]} Rd7 {[%emt 0:02:30]} 17. a4 {[%emt 0:03:30]} Rhd8 {[%emt 0:02:30]} 18. Bc1 {[%emt 0:00:30]} Nd5 {[%emt 0:03:30]} 19. Bc2 {[%emt 0:31:30]} c6 {[%emt 0:35:30]} 20. Kg2 {[%emt 0:00:30]} a5 {[%emt 0:10:30]} 21. Bd3 {[%emt 0:10:30]} b6 {[%emt 0:01:30]} 22. Be3 {[%emt 0:04:30]} Kb7 {[%emt 0:01:30]} 23. Be2 {[%emt 0:02:30]} h5 {[%emt 0:02:30]} 24. Rb1 {[%emt 0:00:30]} Be7 {[%emt 0:03:30]} 25. Bc4 {[%emt 0:01:30]} Rc7 {[%emt 0:03:30]} 26. Rbd1 {[%emt 0:02:30]} Rcd7 {[%emt 0:07:30]} 27. Be2 {[%emt 0:00:30]} Bd6 {[%emt 0:02:30]} 28. h3 {[%emt 0:03:30]} Bc7 {[%emt 0:02:30]} 29. Bg5 {[%emt 0:01:30]} Re8 {[%emt 0:03:30]} 30. Bc4 {[%emt 0:01:30]} Bd8 {[%emt 0:03:30]} 31. Bxd8 {[%emt 0:00:30]} Rexd8 {[%emt 0:00:30]} 32. Kg3 {[%emt 0:01:30]} Ne7 {[%emt 0:01:30]} 33. Bb3 {[%emt 0:01:30]} b5 {[%emt 0:07:54]} 34. Bc2 {[%emt 0:03:30]} b4 {[%emt 0:01:56]} 35. Re5 {[%emt 0:01:30]} Nd5 {[%emt 0:04:14]} 36. cxb4 {[%emt 0:14:30]} Nxb4 {[%emt 0:02:13]} 37. Be4 {[%emt 0:03:30]} Kb6 {[%emt 0:00:14]} 38. Rc1 {[%emt 0:00:30]} Rxd4 {[%emt 0:00:37]} 39. Rec5 {[%emt 0:00:30]} R8d6 {[%emt 0:00:50]} 40. h4 {[%emt 0:00:00]} f5 {[%emt 0:05:05]} 41. Bb1 {[%emt 0:00:00]} Rd2 {[%emt 0:02:27]} 42. b3 {[%emt 0:00:30]} R6d5 {[%emt 0:02:30]} 43. R5c3 Rb2 {[%emt 0:01:30]} 44. Kf4 {[%emt 0:00:00]} Rxf2 {[%emt 0:00:30]} 45. Rg1 {[%emt 0:00:30]} Rdd2 {[%emt 0:01:30]} 46. Kg5 {[%emt 0:00:30]} Rg2+ {[%emt 0:01:30]} 47. Rxg2 {[%emt 0:00:30]} Rxg2+ {[%emt 0:00:30]} 48. Kh6 {[%emt 0:00:30]} Rb2 {[%emt 0:00:30]} 49. Bd3 {[%emt 0:00:30]} Nd5 {[%emt 0:00:30]} 50. Rc1 {[%emt 0:00:30]} Rxb3 {[%emt 0:00:30]} 51. Bc4 {[%emt 0:00:30]} Rxf3 {[%emt 0:00:30]} 52. Bxd5 {[%emt 0:00:30]} exd5 {[%emt 0:00:30]} 53. Kxg6 {[%emt 0:00:00]} Rg3+ {[%emt 0:10:51]} 54. Kxh5 {[%emt 0:00:00]} f4 {[%emt 0:00:09]} 55. Rf1 {[%emt 0:00:00]} f3 $19 {[%emt 0:00:41]} 56. Kh6 {[%emt 0:00:00]} d4 {[%emt 0:01:29]} 57. h5 {[%emt 0:00:00]} d3 {[%emt 0:00:04]} 58. Kh7 {[%emt 0:00:00]} d2 {[%emt 0:00:11]} 59. h6 {[%emt 0:00:00]} f2 {[%emt 0:00:55]} 60. Rd1 {[%emt 0:00:00]} 0-1